bitfinex/quotes_BTCUSD_20241011
["timestamp","ask_amount","ask_price","bid_price","bid_amount"]
[1728668396577,0.47240774,62714.0,62713.0,0.08462751]
[1728668396909,1.24685703,62714.0,62713.0,0.08462751]
[1728668397172,1.24685703,62714.0,62684.0,0.24473342]
[1728668397173,0.282487,62701.0,62694.0,0.23973342]
[1728668397425,0.73289003,62701.0,62694.0,0.23973342]
[1728668397680,0.73289003,62701.0,62695.0,0.0826]
[1728668397915,0.45844074,62701.0,62695.0,0.0826]
[1728668398891,0.47244074,62701.0,62695.0,0.0826]
[1728668399140,0.48844074,62701.0,62700.0,2.63016]
[1728668399325,0.76289003,62701.0,62700.0,2.63016]
[1728668399637,0.7481603,62701.0,62700.0,2.63016]
[1728668399866,0.762851,62701.0,62700.0,2.63016]
[1728668400348,0.748851,62701.0,62700.0,2.63016]
[1728668400592,0.770851,62701.0,62700.0,2.63016]
[1728668401035,0.734851,62701.0,62700.0,2.63016]
[1728668401253,0.98858442,62701.0,62700.0,2.63016]
[1728668401488,0.48840171,62701.0,62700.0,2.63016]
[1728668401728,1.03730029,62701.0,62700.0,2.63016]
[1728668401958,1.03730029,62701.0,62684.0,0.1909]
[1728668401959,0.76152,62688.0,62684.0,0.1909]
[1728668402177,1.2201933,62688.0,62684.0,0.1909]
[1728668402400,1.234884,62688.0,62684.0,0.1909]
[1728668402615,0.96043471,62688.0,62684.0,0.1909]
[1728668403750,0.161527,62685.0,62684.0,0.190875]
[1728668403972,0.46044171,62685.0,62684.0,0.190875]
[1728668404671,0.46044171,62685.0,62679.0,0.0774]
[1728668404672,0.78454,62680.0,62679.0,0.0774]
[1728668404881,0.96045471,62680.0,62679.0,0.0774]
[1728668405099,1.234904,62680.0,62679.0,0.0774]
[1728668405584,0.259555,62674.0,62673.0,0.0161861]
[1728668405811,0.43546324,62674.0,62673.0,0.0161861]
[1728668406762,0.43546324,62674.0,62673.0,0.1999861]
[1728668408157,0.43846324,62674.0,62673.0,0.1999861]
[1728668408416,0.43846324,62674.0,62673.0,0.2759861]
[1728668408417,0.01468423,62674.0,62673.0,0.2759861]
[1728668408628,0.159542,62680.0,62673.0,0.2759861]
[1728668408874,0.006,62674.0,62673.0,0.2759861]
[1728668409120,0.16122401,62679.0,62674.0,0.076]
[1728668409361,0.16122401,62679.0,62675.0,0.1948]
[1728668409362,0.01470527,62678.0,62675.0,0.1948]
[1728668409575,0.01470527,62678.0,62673.0,0.0161861]
[1728668409576,0.0147149,62677.0,62676.0,0.2708]
[1728668409796,0.15953,62684.0,62677.0,0.076]
[1728668409797,0.48028701,62684.0,62677.0,0.076]
[1728668410013,0.159535,62682.0,62677.0,0.076]
[1728668410226,0.16122401,62683.0,62678.0,0.2708]
[1728668411131,0.1,62682.0,62678.0,0.2708]
[1728668411344,0.261543,62679.0,62678.0,0.2708]
[1728668411570,0.42276701,62679.0,62678.0,0.2708]
[1728668412088,0.42276701,62679.0,62678.0,0.54524929]
[1728668412089,0.1,62679.0,62678.0,0.54524929]
[1728668412305,0.104,62683.0,62678.0,0.54524929]
[1728668412537,0.1,62681.0,62678.0,0.54524929]
[1728668412781,0.259539,62681.0,62678.0,0.54524929]
[1728668413036,0.1,62681.0,62678.0,0.2708]
[1728668413258,0.0019,62679.0,62678.0,0.2708]
[1728668413523,0.1,62681.0,62678.0,0.2708]
[1728668413736,0.1,62682.0,62678.0,0.54524929]
[1728668413957,0.0019,62679.0,62678.0,0.54524929]
[1728668414829,0.42266701,62679.0,62678.0,0.54524929]
[1728668415276,0.26222401,62679.0,62678.0,0.54524929]
[1728668415496,0.42366701,62679.0,62678.0,0.54524929]
[1728668415733,0.42366701,62679.0,62678.0,0.2708]
[1728668417138,0.42466701,62679.0,62678.0,0.2708]
[1728668417573,0.42466701,62679.0,62678.0,0.272444]
[1728668418657,0.42466701,62679.0,62678.0,0.257459]
[1728668419743,0.42456701,62679.0,62678.0,0.257459]
[1728668420171,0.42266701,62679.0,62678.0,0.257459]
[1728668420407,0.26312401,62679.0,62678.0,0.257459]
[1728668420635,0.002,62679.0,62678.0,0.257459]
[1728668420884,0.1039,62679.0,62678.0,0.257459]
[1728668421110,0.263443,62679.0,62678.0,0.257459]
[1728668421811,0.42466701,62679.0,62678.0,0.257459]
[1728668422516,0.102,62679.0,62678.0,0.257459]
[1728668422743,0.002,62679.0,62678.0,0.257459]
[1728668422968,0.0019,62692.0,62678.0,0.257459]
[1728668422969,0.819004,62696.0,62678.0,0.33382414]
[1728668423225,0.23973342,62686.0,62683.0,0.2682]
[1728668423473,0.16122401,62692.0,62683.0,0.2682]
[1728668423474,0.159513,62691.0,62683.0,0.2682]
[1728668423695,0.32073901,62690.0,62689.0,0.27444929]
[1728668423914,0.001,62689.0,62687.0,0.27444929]
[1728668424142,0.159519,62689.0,62687.0,0.27444929]
[1728668424373,0.25952,62688.0,62687.0,0.27444929]
[1728668424602,0.1,62687.0,62683.0,0.2732]
[1728668424872,0.1,62687.0,62686.0,0.27444929]
[1728668425793,0.25952,62688.0,62686.0,0.27444929]
[1728668426016,0.25952,62688.0,62683.0,0.2742]
[1728668426017,0.26222401,62687.0,62683.0,0.2692]
[1728668426244,0.319023,62692.0,62683.0,0.2682]
[1728668426245,0.28353,62684.0,62683.0,0.2682]
[1728668426475,0.44475401,62684.0,62683.0,0.2682]
[1728668427168,0.44565401,62684.0,62683.0,0.2682]
[1728668427454,0.44565401,62684.0,62678.0,0.001644]
[1728668427455,0.259543,62679.0,62678.0,0.001644]
[1728668427683,0.42176701,62679.0,62678.0,0.001644]
[1728668428183,0.42266701,62679.0,62678.0,0.001644]
[1728668429178,0.42076701,62679.0,62678.0,0.001644]
[1728668429965,0.42076701,62679.0,62678.0,0.006644]
[1728668430688,0.42176701,62679.0,62678.0,0.010644]
[1728668430925,0.42176701,62679.0,62678.0,0.030144]
[1728668431156,0.42276701,62679.0,62678.0,0.034144]
[1728668433265,0.42276701,62679.0,62678.0,0.033644]
[1728668434225,0.42466701,62679.0,62678.0,0.033644]
[1728668440550,0.42276701,62679.0,62678.0,0.033644]
[1728668443092,0.42466701,62679.0,62678.0,0.033644]
[1728668443298,0.42276701,62679.0,62678.0,0.033644]
[1728668444415,0.26322401,62679.0,62678.0,0.033644]
[1728668444617,0.26322401,62679.0,62678.0,0.04539554]
[1728668445406,0.42276701,62679.0,62678.0,0.04539554]
[1728668445823,0.42466701,62679.0,62678.0,0.04539554]
[1728668446251,0.42466701,62679.0,62678.0,0.033644]
[1728668448440,0.44766701,62679.0,62678.0,0.033644]
[1728668451315,0.49544596,62679.0,62678.0,0.033644]
[1728668451722,0.42276701,62679.0,62678.0,0.033644]
[1728668451944,0.002,62679.0,62678.0,0.033644]
[1728668452393,0.002,62679.0,62678.0,0.043531]
[1728668452677,0.002,62679.0,62678.0,0.124431]
[1728668460394,0.002,62679.0,62678.0,0.124531]
[1728668460637,0.002,62679.0,62678.0,0.124431]
[1728668461547,0.102,62679.0,62678.0,0.124431]
[1728668461768,0.002,62679.0,62678.0,0.124431]
[1728668462000,0.102,62679.0,62678.0,0.124431]
[1728668462250,0.002,62679.0,62678.0,0.124431]
[1728668463130,0.102,62679.0,62678.0,0.124431]
[1728668463431,0.102822,62679.0,62678.0,0.124431]
[1728668465324,0.002822,62679.0,62678.0,0.124431]
[1728668467244,0.102822,62679.0,62678.0,0.124431]
[1728668467717,0.102822,62679.0,62678.0,0.17703569]
[1728668467952,0.102822,62679.0,62678.0,0.17693569]
[1728668468180,0.102822,62679.0,62678.0,0.288976]
[1728668468415,0.16034,62689.0,62678.0,0.288976]
[1728668468416,0.000822,62689.0,62688.0,0.005]
[1728668468654,0.000822,62692.0,62688.0,0.4669298]
[1728668468892,0.000822,62692.0,62691.0,0.0823]
[1728668469386,0.000822,62692.0,62691.0,0.09206351]
[1728668470580,0.001822,62692.0,62691.0,0.09606351]
[1728668471561,0.002822,62692.0,62691.0,0.10406351]
[1728668471816,0.002822,62692.0,62691.0,0.29915329]
[1728668472084,0.002822,62692.0,62691.0,0.45866529]
[1728668472351,0.000822,62701.0,62700.0,0.005]
[1728668472608,0.258296,62706.0,62705.0,0.1909298]
[1728668472862,0.098822,62706.0,62705.0,0.1909298]
[1728668473110,0.098822,62706.0,62705.0,0.20054875]
[1728668473429,0.33855542,62706.0,62705.0,0.01461895]
[1728668473623,0.161387,62701.0,62700.0,0.2748]
[1728668473886,0.159504,62694.0,62693.0,0.0869]
[1728668474131,0.159504,62695.0,62693.0,0.0869]
[1728668474398,0.159497,62697.0,62693.0,0.0869]
[1728668474648,0.318989,62698.0,62693.0,0.0869]
[1728668474649,0.1,62698.0,62694.0,0.005]
[1728668474877,0.1001,62698.0,62694.0,0.005]
[1728668475110,0.1001,62698.0,62696.0,0.1859298]
[1728668475369,0.1001,62698.0,62696.0,0.1909298]
[1728668475623,0.0002,62698.0,62696.0,0.1909298]
[1728668475885,0.0002,62698.0,62697.0,0.6158268]
[1728668476138,0.001,62701.0,62700.0,0.164589]
[1728668476379,0.0009,62722.0,62700.0,0.164589]
[1728668476380,0.23973342,62716.0,62713.0,0.347955]
[1728668476631,0.23973342,62716.0,62715.0,0.4318808]
[1728668476868,0.23973342,62725.0,62724.0,0.0865]
[1728668477113,0.23973342,62725.0,62724.0,0.4578298]
[1728668477358,0.159411,62731.0,62724.0,0.4578298]
[1728668477577,0.38308581,62734.0,62730.0,0.1859298]
[1728668477578,0.06427881,62734.0,62730.0,0.1859298]
[1728668477798,0.06427881,62734.0,62731.0,0.005]
[1728668478016,0.159408,62732.0,62731.0,0.005]
[1728668478479,0.01484399,62732.0,62731.0,0.005]
[1728668478703,0.17425199,62732.0,62731.0,0.005]
[1728668479179,0.27425103,62732.0,62729.0,0.005]
[1728668479423,0.27425103,62732.0,62725.0,0.27466022]
[1728668479424,0.259408,62732.0,62731.0,0.005]
[1728668479630,0.27424056,62732.0,62731.0,0.005]
[1728668479843,0.11483256,62732.0,62731.0,0.005]
[1728668480081,0.27424056,62732.0,62731.0,0.005]
[1728668480527,0.11483256,62732.0,62731.0,0.005]
[1728668480967,0.11483256,62732.0,62731.0,0.015539]
[1728668481221,0.11483256,62732.0,62731.0,0.005]
[1728668481437,0.11483256,62732.0,62731.0,0.015539]
[1728668481684,0.11483256,62732.0,62731.0,0.005]
[1728668481903,0.01483256,62732.0,62731.0,0.015539]
[1728668482824,0.01483256,62732.0,62731.0,0.094839]
[1728668483045,0.12494879,62739.0,62734.0,0.005]
[1728668483285,0.12494879,62739.0,62731.0,0.089839]
[1728668483286,0.12494879,62739.0,62732.0,0.005]
[1728668483287,0.1,62735.0,62732.0,0.005]
[1728668483510,0.1,62732.0,62727.0,0.005]
[1728668483729,0.259418,62728.0,62727.0,0.005]
[1728668484170,0.1,62728.0,62727.0,0.21536334]
[1728668484390,0.1,62728.0,62727.0,0.005]
[1728668484626,0.11480077,62728.0,62727.0,0.005]
[1728668484852,0.01480073,62728.0,62727.0,0.005]
[1728668485081,0.1,62731.0,62727.0,0.005]
[1728668485308,0.259403,62734.0,62733.0,0.005]
[1728668486654,0.263403,62734.0,62733.0,0.005]
[1728668487713,0.1019,62730.0,62728.0,0.005]
[1728668487977,0.259415,62729.0,62728.0,0.005]
[1728668489142,0.259415,62729.0,62728.0,0.007]
[1728668489787,0.259415,62729.0,62728.0,0.009]
[1728668490025,0.259415,62729.0,62728.0,0.007]
[1728668493678,0.1,62729.0,62728.0,0.012]
[1728668493908,0.1,62736.0,62733.0,0.005]
[1728668494124,0.1,62736.0,62734.0,0.005]
[1728668494342,0.259398,62736.0,62734.0,0.005]
[1728668494560,0.2594,62735.0,62734.0,0.005]
[1728668495255,0.578202,62735.0,62734.0,0.005]
[1728668495694,0.578202,62735.0,62728.0,0.57272624]
[1728668495695,0.259403,62734.0,62733.0,0.005]
[1728668496618,0.260415,62729.0,62728.0,0.0841]
[1728668496841,0.261315,62729.0,62728.0,0.004]
[1728668497065,0.261315,62729.0,62725.0,0.005]
[1728668497066,0.159423,62726.0,62725.0,0.005]
[1728668497290,0.259423,62726.0,62725.0,0.005]
[1728668497714,0.1,62726.0,62724.0,0.005]
[1728668497931,0.259426,62725.0,62724.0,0.005]
[1728668498603,0.240426,62725.0,62724.0,0.005]
[1728668499276,0.101,62725.0,62724.0,0.012]
[1728668499501,0.001,62725.0,62724.0,0.24553553]
[1728668499993,0.04729766,62780.0,62729.0,0.005]
[1728668500252,0.000822,62788.0,62724.0,0.35383813]
[1728668500253,0.00082,62813.0,62812.0,0.243905]
[1728668500476,5.219255,62813.0,62812.0,0.434505]
[1728668500708,5.219255,62813.0,62812.0,0.81073324]
[1728668500942,4.21107649,62813.0,62812.0,0.81073324]
[1728668501177,4.211077,62813.0,62812.0,0.81073324]
[1728668501402,0.00082,62826.0,62812.0,0.81073324]
[1728668501403,0.00082,62826.0,62825.0,0.005]
[1728668501628,0.00082,62826.0,62825.0,0.19061412]
[1728668501852,0.00082,62826.0,62825.0,0.34978612]
[1728668502075,0.00082,62826.0,62825.0,0.72450024]
[1728668502302,0.00082,62842.0,62834.0,0.19061412]
[1728668502533,0.00082,62842.0,62834.0,0.005]
[1728668502774,0.00082,62842.0,62834.0,0.27868331]
[1728668503460,0.01556274,62835.0,62834.0,0.007]
[1728668503716,0.01556274,62835.0,62831.0,0.00318264]
[1728668503944,0.00082,62835.0,62831.0,0.00318264]
[1728668504130,0.00082,62835.0,62834.0,0.007]
[1728668504391,0.00082,62835.0,62802.0,0.04651307]
[1728668504608,0.00082,62835.0,62829.0,0.27368331]
[1728668504849,0.00082,62835.0,62818.0,0.20398541]
[1728668504850,0.95656402,62834.0,62818.0,0.20398541]
[1728668505085,0.95656402,62834.0,62818.0,0.19356211]
[1728668505321,0.00082,62835.0,62832.0,0.27368331]
[1728668505533,0.23875466,62833.0,62828.0,0.27368331]
[1728668505730,0.23875466,62833.0,62831.0,0.01]
[1728668506217,0.00082,62835.0,62832.0,0.16122401]
[1728668506433,0.00082,62835.0,62832.0,0.17022401]
[1728668506879,0.00082,62835.0,62832.0,0.18724641]
[1728668507331,0.00082,62835.0,62833.0,0.1818]
[1728668507563,0.00082,62835.0,62834.0,0.16122401]
[1728668508699,0.00182,62835.0,62834.0,0.16122401]
[1728668508924,0.00082,62835.0,62834.0,0.16122401]
[1728668509149,0.00082,62835.0,62834.0,0.17122401]
[1728668509345,0.00282,62835.0,62834.0,0.18022401]
[1728668511814,0.00282,62835.0,62834.0,0.08022401]
[1728668512039,0.00282,62835.0,62834.0,0.019]
[1728668513013,0.00282,62835.0,62834.0,0.01827792]
[1728668514204,0.00282,62835.0,62834.0,0.02146045]
[1728668515432,0.00282,62835.0,62834.0,1.04914449]
[1728668515673,0.00282,62835.0,62834.0,1.04596196]
[1728668515925,0.00282,62835.0,62834.0,1.02563592]
[1728668516659,0.00282,62835.0,62834.0,0.01827792]
[1728668519070,0.00282,62835.0,62834.0,0.45429275]
[1728668519345,0.00282,62835.0,62834.0,0.61233424]
[1728668519589,0.00282,62835.0,62834.0,1.61969224]
[1728668521771,0.00282,62835.0,62834.0,1.34600893]
[1728668522031,0.00082,62842.0,62835.0,0.159144]
[1728668522257,0.23875466,62839.0,62836.0,0.16136971]
[1728668522493,0.23875466,62839.0,62837.0,1.007358]
[1728668522994,0.00082,62842.0,62836.0,1.007358]
[1728668523685,0.00182,62842.0,62836.0,1.007358]
[1728668524137,0.001,62839.0,62837.0,0.006]
[1728668524406,0.001,62839.0,62838.0,1.007358]
[1728668524892,0.001,62839.0,62837.0,0.006]
[1728668524893,0.27468331,62839.0,62837.0,0.006]
[1728668525120,0.001,62839.0,62837.0,0.006]
[1728668525316,0.00182,62842.0,62836.0,0.007]
[1728668525847,0.00182,62842.0,62836.0,0.008]
[1728668526115,0.00182,62842.0,62838.0,0.005]
[1728668526865,0.001,62839.0,62838.0,0.005]
[1728668527544,0.001,62839.0,62838.0,1.007358]
[1728668527785,0.001,62839.0,62838.0,0.005]
[1728668528015,0.001,62839.0,62838.0,0.00818228]
[1728668528288,0.001,62839.0,62838.0,1.01554028]
[1728668528529,0.001,62839.0,62838.0,1.017358]
[1728668529005,0.00082,62842.0,62838.0,1.1140938]
[1728668529246,0.00082,62842.0,62839.0,1.01054033]
[1728668529473,0.00082,62842.0,62840.0,1.0105403]
[1728668529729,0.00082,62842.0,62841.0,0.00318228]
[1728668529973,0.00082,62842.0,62838.0,0.005]
[1728668530429,0.00082,62842.0,62839.0,1.007358]
[1728668530862,0.00082,62842.0,62841.0,0.002]
[1728668531808,0.1,62852.0,62841.0,0.002]
[1728668532049,0.23875466,62846.0,62841.0,0.002]
[1728668532316,0.10318267,62852.0,62842.0,1.007358]
[1728668532317,0.1,62852.0,62842.0,1.007358]
[1728668532551,0.1,62852.0,62839.0,0.004]
[1728668532552,0.23875466,62852.0,62843.0,0.10431777]
[1728668532796,0.23875466,62852.0,62844.0,1.007358]
[1728668533029,0.23875466,62852.0,62845.0,0.00318199]
[1728668533272,0.0015182,62860.0,62851.0,0.39997867]
[1728668533493,0.01060173,62864.0,62863.0,0.159076]
[1728668533954,0.01060173,62864.0,62863.0,0.190976]
[1728668534183,0.00288857,62868.0,62865.0,0.159071]
[1728668534436,0.00288857,62868.0,62865.0,1.32765301]
[1728668534650,0.23875466,62884.0,62875.0,0.159045]
[1728668534914,0.23875466,62877.0,62875.0,0.67272615]
[1728668535135,0.23875466,62884.0,62875.0,1.68008415]
[1728668535358,0.23875466,62883.0,62876.0,0.1831]
[1728668535593,0.23875466,62891.0,62881.0,0.159029]
[1728668535812,0.23875466,62891.0,62882.0,1.16858201]
[1728668536001,0.23875466,62891.0,62883.0,1.007358]
[1728668536217,0.00025805,62897.0,62885.0,0.23875466]
[1728668536432,0.00025805,62897.0,62882.0,0.1316237]
[1728668536433,0.00025805,62897.0,62886.0,1.16858201]
[1728668536647,0.00025805,62897.0,62887.0,1.007358]
[1728668536882,0.00025805,62897.0,62887.0,1.16858201]
[1728668537103,0.00025805,62897.0,62887.0,1.2783901]
[1728668537835,0.00025805,62897.0,62887.0,1.4374051]
[1728668538063,0.00025805,62897.0,62887.0,1.16858201]
[1728668538321,0.158993,62896.0,62887.0,1.17958201]
[1728668539039,0.0171861,62888.0,62887.0,1.19258201]
[1728668539743,0.0171861,62888.0,62887.0,1.031358]
[1728668540014,0.0171861,62888.0,62887.0,0.024]
[1728668540225,0.2261981,62888.0,62887.0,0.024]
[1728668540712,0.0671861,62888.0,62887.0,0.013]
[1728668540948,0.0671861,62888.0,62887.0,4.58183701]
[1728668541183,0.0671861,62888.0,62887.0,4.74820672]
[1728668541424,0.0671861,62888.0,62887.0,4.58683701]
[1728668541636,0.0661861,62888.0,62887.0,4.56883701]
[1728668541857,0.0661861,62888.0,62887.0,4.57783701]
[1728668542113,0.0671861,62888.0,62887.0,4.57783701]
[1728668542335,0.0671861,62888.0,62887.0,3.403255]
[1728668542617,0.0681861,62888.0,62887.0,3.403255]
[1728668542831,0.2271981,62888.0,62887.0,3.403255]
[1728668543060,0.2271981,62888.0,62887.0,3.400255]
[1728668543521,0.2291981,62888.0,62887.0,3.400255]
[1728668544882,0.49860478,62888.0,62887.0,3.400255]
[1728668545097,0.51842211,62888.0,62887.0,3.400255]
[1728668545310,0.52042211,62888.0,62887.0,3.400255]
[1728668545521,0.52124211,62888.0,62887.0,3.400255]
[1728668545732,0.51924211,62888.0,62887.0,3.400255]
[1728668546180,0.52424211,62888.0,62887.0,3.202255]
[1728668546442,0.52024211,62888.0,62887.0,3.200255]
[1728668546667,0.52224211,62888.0,62887.0,3.201255]
[1728668546869,0.52224211,62888.0,62887.0,3.202255]
[1728668547330,0.52424211,62888.0,62887.0,3.18435572]
[1728668547594,0.52924211,62888.0,62887.0,3.18435572]
[1728668547833,0.52924211,62888.0,62887.0,3.18535572]
[1728668547834,0.53924211,62888.0,62887.0,3.18535572]
[1728668548064,0.52924211,62888.0,62887.0,3.18435572]
[1728668548313,0.52924211,62888.0,62887.0,3.17630006]
[1728668548783,0.52924211,62888.0,62887.0,3.17730006]
[1728668548784,0.53724211,62888.0,62887.0,3.17730006]
[1728668549038,0.52924211,62888.0,62887.0,3.17630006]
[1728668549264,0.52224211,62888.0,62887.0,3.17530006]
[1728668549511,0.52824211,62888.0,62887.0,3.17630006]
[1728668549950,0.52524211,62888.0,62887.0,3.17630006]
[1728668550412,0.53724211,62888.0,62887.0,3.17730006]
[1728668552591,0.51224211,62888.0,62887.0,3.17730006]
[1728668552867,0.2460181,62888.0,62887.0,3.17730006]
[1728668553553,0.2460181,62888.0,62887.0,3.18789451]
[1728668553764,0.2340181,62888.0,62887.0,3.18689451]
[1728668553977,0.3460181,62888.0,62887.0,3.18789451]
[1728668554606,0.3380181,62888.0,62887.0,3.18689451]
[1728668554823,0.49924211,62888.0,62887.0,3.18689451]
[1728668555042,0.50724211,62888.0,62887.0,3.18789451]
[1728668555271,0.49224211,62888.0,62887.0,3.18589451]
[1728668555478,0.76892542,62888.0,62887.0,3.18589451]
[1728668555686,0.77092542,62888.0,62887.0,3.18589451]
[1728668556534,0.77092542,62888.0,62887.0,3.18753451]
[1728668557412,0.60970141,62888.0,62887.0,3.18753451]
[1728668558135,0.77092542,62888.0,62887.0,3.18753451]
[1728668558353,0.77192542,62888.0,62887.0,3.18753451]
[1728668558577,0.77292542,62888.0,62887.0,3.18753451]
[1728668558821,0.77092542,62888.0,62887.0,3.18753451]
[1728668559028,0.79592542,62888.0,62887.0,3.18753451]
[1728668559714,0.49724211,62888.0,62887.0,3.18753451]
[1728668563654,0.3310181,62888.0,62887.0,3.18753451]
[1728668564203,0.3310181,62888.0,62887.0,3.34890422]
[1728668564404,0.3310181,62888.0,62887.0,3.18753451]
[1728668566699,0.2310181,62888.0,62887.0,3.18753451]
[1728668567613,0.2280181,62888.0,62887.0,3.18753451]
[1728668568033,0.2330181,62888.0,62887.0,3.18753451]
[1728668568496,0.2310181,62888.0,62887.0,3.18753451]
[1728668568713,0.2320181,62888.0,62887.0,3.18753451]
[1728668568949,0.2260181,62888.0,62887.0,3.18753451]
[1728668569170,0.2300181,62888.0,62887.0,3.18753451]
[1728668569386,0.2330181,62888.0,62887.0,3.18753451]
[1728668570855,0.3380181,62888.0,62887.0,3.18753451]
[1728668571220,0.3340181,62888.0,62887.0,3.18753451]
[1728668571663,0.3310181,62888.0,62887.0,3.19253451]
[1728668571864,0.3320181,62888.0,62887.0,3.19853451]
[1728668572115,0.3310181,62888.0,62887.0,3.18753451]
[1728668572328,0.3305181,62888.0,62887.0,3.18753451]
[1728668572509,0.3335181,62888.0,62887.0,3.18753451]
[1728668572735,0.3325181,62888.0,62887.0,3.18753451]
[1728668573084,0.3325181,62888.0,62887.0,3.34890422]
[1728668573330,0.3325181,62888.0,62887.0,3.18753451]
[1728668573696,0.3305181,62888.0,62887.0,3.18753451]
[1728668574150,0.3325181,62888.0,62887.0,3.18753451]
[1728668576380,0.49374211,62888.0,62887.0,3.18753451]
[1728668577725,0.49574211,62888.0,62887.0,3.18753451]
[1728668577959,0.49374211,62888.0,62887.0,3.18753451]
[1728668578187,0.56460768,62888.0,62887.0,3.18753451]
[1728668578654,0.51874211,62888.0,62887.0,3.17694006]
[1728668578870,0.56461507,62888.0,62887.0,3.17694006]
[1728668579100,0.56461507,62888.0,62887.0,3.18792307]
[1728668579320,0.56361507,62888.0,62887.0,3.18792307]
[1728668579548,1.16505811,62888.0,62887.0,2.11896919]
[1728668579775,1.13054135,62888.0,62887.0,2.11530819]
[1728668579994,1.04160511,62888.0,62887.0,2.11530819]
[1728668580218,1.04360511,62888.0,62887.0,2.11530819]
[1728668580438,1.04870511,62888.0,62887.0,1.91230819]
[1728668580657,1.04680511,62888.0,62887.0,1.90454062]
[1728668580877,1.04680511,62888.0,62887.0,1.90554062]
[1728668580878,1.1301731,62888.0,62887.0,1.90554062]
[1728668581100,1.74060511,62888.0,62887.0,1.90554062]
[1728668581336,1.78248094,62888.0,62887.0,1.88154062]
[1728668581553,1.77248094,62888.0,62887.0,1.87321861]
[1728668581795,1.79748094,62888.0,62887.0,1.88254568]
[1728668582015,1.9164289,62888.0,62887.0,1.12958345]
[1728668582245,1.92805707,62888.0,62887.0,1.12958345]
[1728668582495,1.63249235,62888.0,62887.0,1.12958345]
[1728668582719,1.24821652,62888.0,62887.0,1.12958345]
[1728668582937,1.24821652,62888.0,62887.0,1.12225638]
[1728668583161,1.41300096,62888.0,62887.0,1.12225638]
[1728668583395,1.29407863,62888.0,62887.0,1.12959444]
[1728668583667,1.39900096,62888.0,62887.0,1.12859444]
[1728668583901,1.29407863,62888.0,62887.0,1.12859444]
[1728668584145,1.33232465,62888.0,62887.0,1.12859444]
[1728668584404,1.29304402,62888.0,62887.0,1.12959444]
[1728668584654,1.67480699,62888.0,62887.0,1.12959444]
[1728668584905,1.54624849,62888.0,62887.0,1.12959444]
[1728668585364,1.61756592,62888.0,62887.0,1.12959444]
[1728668585580,1.54624849,62888.0,62887.0,0.00364]
[1728668585794,1.6175644,62888.0,62887.0,0.00364]
[1728668586344,1.6175644,62888.0,62875.0,0.00164]
[1728668586345,0.90860721,62876.0,62875.0,0.00164]
[1728668586576,1.09057821,62876.0,62875.0,0.00164]
[1728668586803,1.09057821,62876.0,62875.0,0.00909632]
[1728668587038,1.09057821,62876.0,62875.0,0.00164]
[1728668587705,1.10457821,62876.0,62875.0,0.00264]
[1728668588841,1.11557821,62876.0,62875.0,0.00364]
[1728668593182,1.38918542,62876.0,62875.0,0.00364]
[1728668593418,1.50707142,62876.0,62875.0,0.00364]
[1728668593716,1.23346421,62876.0,62875.0,0.00364]
[1728668593941,1.50707142,62876.0,62875.0,0.00364]
[1728668594389,2.08992942,62876.0,62875.0,0.00364]
[1728668595145,2.08992942,62876.0,62853.0,0.0818]
[1728668595146,0.90860721,62865.0,62853.0,0.0818]
[1728668595387,1.22890222,62865.0,62853.0,0.0818]
[1728668595634,0.105,62853.0,62852.0,0.1911]
[1728668595870,0.26940668,62853.0,62852.0,0.1911]
[1728668596321,0.26940668,62853.0,62845.0,0.0791]
[1728668596544,0.37860721,62846.0,62845.0,0.0791]
[1728668596778,0.53983122,62846.0,62845.0,0.0791]
[1728668597243,0.53983122,62846.0,62842.0,0.1974]
[1728668597244,0.028,62843.0,62842.0,0.1974]
[1728668597501,0.028,62843.0,62836.0,0.0772]
[1728668597502,0.19240668,62843.0,62836.0,0.0772]
[1728668597722,0.005,62837.0,62836.0,0.0772]
[1728668597942,0.26940668,62837.0,62836.0,0.0772]
[1728668598381,0.42854768,62837.0,62836.0,0.0772]
[1728668598604,0.42536501,62837.0,62836.0,0.0772]
[1728668599301,0.42536501,62837.0,62836.0,0.0802]
[1728668600479,0.42536501,62837.0,62836.0,0.003]
[1728668600908,0.44836501,62837.0,62836.0,0.003]
[1728668601125,0.264146,62835.0,62828.0,0.0823]
[1728668601352,0.45155268,62835.0,62828.0,0.0823]
[1728668601593,0.72197722,62835.0,62828.0,0.0823]
[1728668602025,0.44837001,62835.0,62828.0,0.0823]
[1728668602289,0.1,62836.0,62834.0,0.18264]
[1728668602484,0.323202,62854.0,62834.0,0.18264]
[1728668602485,0.005,62849.0,62836.0,0.181]
[1728668602740,0.23875466,62850.0,62838.0,0.181]
[1728668602741,0.23875466,62843.0,62838.0,0.181]
[1728668602967,0.15912,62846.0,62840.0,0.181]
[1728668603201,0.32534401,62846.0,62840.0,0.181]
[1728668603407,0.318244,62845.0,62841.0,0.00846167]
[1728668603653,0.32323,62848.0,62842.0,0.2619]
[1728668603874,0.33474423,62869.0,62844.0,0.181]
[1728668603875,0.005,62850.0,62844.0,0.181]
[1728668604191,0.005,62850.0,62843.0,0.00318226]
[1728668604192,0.005,62850.0,62846.0,0.181]
[1728668604425,0.159106,62851.0,62846.0,0.181]
[1728668604649,0.159106,62851.0,62847.0,0.00840052]
[1728668604895,0.164106,62851.0,62846.0,0.181]
[1728668605128,0.1,62850.0,62846.0,0.181]
[1728668605356,0.1,62850.0,62847.0,0.00839423]
[1728668605357,0.26011,62850.0,62847.0,0.00839423]
[1728668605575,0.1,62848.0,62847.0,0.00839423]
[1728668605787,0.1,62848.0,62847.0,0.01039423]
[1728668606007,0.1,62848.0,62847.0,0.01139423]
[1728668606229,0.1,62848.0,62847.0,0.003]
[1728668606468,0.318179,62858.0,62847.0,0.003]
[1728668606469,0.23875466,62872.0,62849.0,0.2722]
[1728668606692,0.23875466,62872.0,62847.0,0.70239409]
[1728668606693,0.23875466,62863.0,62862.0,0.46880721]
[1728668606937,0.318083,62877.0,62862.0,0.46880721]